fUST/lending_fUST_20240930
["ID","MTS","AMOUNT","RATE_DAILY","PERIOD"]
[339529466,1727680254694,-500.0,0.000144,2]
[339529467,1727680254703,-500.0,0.000144,2]
[339529468,1727680254712,-500.0,0.000144,2]
[339529469,1727680254722,-500.0,0.000144,2]
[339529470,1727680254732,-500.0,0.000144,2]
[339529471,1727680254741,-500.0,0.000144,2]
[339529472,1727680254751,-500.0,0.000144,2]
[339529473,1727680254761,-500.0,0.000144,2]
[339529474,1727680254770,-500.0,0.000144,2]
[339529475,1727680254779,-500.0,0.000144,2]
[339529476,1727680254789,-500.0,0.000144,2]
[339529477,1727680254798,-500.0,0.000144,2]
[339529478,1727680254808,-500.0,0.000144,2]
[339529479,1727680254817,-500.0,0.000144,2]
[339529480,1727680254827,-732.37,0.000144,2]
[339529481,1727680254837,-500.0,0.000144,2]
[339529482,1727680254846,-500.0,0.000144,2]
[339529483,1727680254856,-501.21,0.000144,2]
[339529484,1727680254866,-500.0,0.000144,2]
[339529485,1727680254876,-704.69,0.000144,2]
[339529486,1727680254886,-500.0,0.000144,2]
[339529487,1727680254896,-519.26548262,0.000144,2]
[339529488,1727680254906,-500.0,0.000144,2]
[339529489,1727680254920,-500.0,0.000144,2]
[339529490,1727680254930,-500.0,0.000144,2]
[339529491,1727680254940,-500.0,0.000144,2]
[339529492,1727680254950,-500.0,0.000144,2]
[339529493,1727680254960,-500.0,0.000144,2]
[339529494,1727680254970,-500.0,0.000144,2]
[339529495,1727680254980,-500.0,0.000144,2]
[339529496,1727680254989,-500.0,0.000144,2]
[339529497,1727680254999,-500.0,0.000144,2]
[339529498,1727680255009,-500.0,0.000144,2]
[339529499,1727680255019,-500.0,0.000144,2]
[339529500,1727680255029,-500.0,0.000144,2]
[339529501,1727680255039,-500.0,0.000144,2]
[339529502,1727680255049,-500.0,0.000144,2]
[339529503,1727680255058,-500.0,0.000144,2]
[339529504,1727680255068,-507.37077679,0.000144,2]
[339529505,1727680255077,-500.0,0.000144,2]
[339529506,1727680255087,-500.0,0.000144,2]
[339529507,1727680255096,-2200.34,0.000144,2]
[339529508,1727680255106,-507.0823237,0.000144,2]
[339529509,1727680255116,-500.0,0.000144,2]
[339529510,1727680255126,-1355.69,0.000144,2]
[339529511,1727680255136,-341.48666955,0.000144,2]
[339529512,1727680255147,-500.0,0.000144,2]
[339529513,1727680255156,-500.0,0.000144,2]
[339529514,1727680255170,-508.75835672,0.000144,2]
[339529515,1727680255179,-500.0,0.000144,2]
[339529516,1727680255189,-500.0,0.000144,2]
[339529517,1727680255198,-500.0,0.000144,2]
[339529518,1727680255208,-590.29,0.000144,2]
[339529519,1727680255217,-500.0,0.000144,2]
[339529520,1727680255227,-565.73,0.000144,2]
[339529521,1727680255236,-500.0,0.000144,2]
[339529522,1727680255246,-500.0,0.000144,2]
[339529523,1727680255256,-500.0,0.000144,2]
[339529524,1727680255266,-631.86858484,0.000144,2]
[339529525,1727680255276,-553.96214591,0.000144,2]
[339529526,1727680255286,-500.0,0.000144,2]
[339529527,1727680255295,-500.0,0.000144,2]
[339529528,1727680255305,-500.0,0.000144,2]
[339529529,1727680255315,-504.55062437,0.000144,2]
[339529530,1727680255325,-501.55,0.000144,2]
[339529531,1727680255335,-500.0,0.000144,2]
[339529532,1727680255345,-500.0,0.000144,2]
[339529533,1727680255355,-500.0,0.000144,2]
[339529534,1727680255365,-463.69816274,0.000144,2]
[339529535,1727680255375,-500.81179093,0.000144,2]
[339529536,1727680255384,-500.0,0.000144,2]
[339529537,1727680255394,-500.0,0.000144,2]
[339529538,1727680255404,-526.76,0.000144,2]
[339529539,1727680255414,-500.0,0.000144,2]
[339529540,1727680255423,-500.0,0.000144,2]
[339529541,1727680255433,-500.0,0.000144,2]
[339529542,1727680255443,-500.0,0.000144,2]
[339529543,1727680255453,-819.42,0.000144,2]
[339529544,1727680255463,-500.0,0.000144,2]
[339529545,1727680255476,-500.0,0.000144,2]
[339529546,1727680255486,-504.29582994,0.000144,2]
[339529547,1727680255497,-500.0,0.000144,2]
[339529548,1727680255507,-500.0,0.000144,2]
[339529549,1727680255518,-500.0,0.000144,2]
[339529550,1727680255528,-542.26404814,0.000144,2]
[339529551,1727680255538,-1078.12,0.000144,2]
[339529552,1727680255550,-500.0,0.000144,2]
[339529553,1727680255560,-500.0,0.000144,2]
[339529554,1727680255570,-500.0,0.000144,2]
[339529555,1727680255580,-500.0,0.000144,2]
[339529556,1727680255589,-500.0,0.000144,2]
[339529557,1727680255599,-517.26,0.000144,2]
[339529558,1727680255609,-500.0,0.000144,2]
[339529559,1727680255619,-500.0,0.000144,2]
[339529560,1727680255628,-958.51,0.000144,2]
[339529561,1727680255640,-500.0,0.000144,2]
[339529562,1727680255649,-500.0,0.000144,2]
[339529563,1727680255659,-500.0,0.000144,2]
[339529564,1727680255669,-500.0,0.000144,2]
[339529565,1727680255679,-500.0,0.000144,2]
[339529566,1727680255690,-500.0,0.000144,2]
[339529567,1727680255699,-586.75,0.000144,2]
[339529568,1727680255710,-500.0,0.000144,2]
[339529569,1727680255720,-728.13,0.000144,2]
[339529570,1727680255730,-500.0,0.000144,2]
[339529571,1727680255740,-513.12,0.000144,2]
[339529572,1727680255751,-500.0,0.000144,2]
[339529573,1727680255761,-500.0,0.000144,2]
[339529574,1727680255771,-500.0,0.000144,2]
[339529575,1727680255782,-500.0,0.000144,2]
[339529576,1727680255791,-500.0,0.000144,2]
[339529577,1727680255802,-500.0,0.000144,2]
[339529578,1727680255812,-150.112233,0.000144,2]
[339529579,1727680255822,-500.0,0.000144,2]
[339529580,1727680255832,-507.5,0.000144,2]
[339529581,1727680255841,-909.59,0.000144,2]
[339529582,1727680255852,-575.25,0.000144,2]
[339529583,1727680255862,-500.0,0.000144,2]
[339529584,1727680255872,-594.63,0.000144,2]
[339529585,1727680255882,-500.0,0.000144,2]
[339529586,1727680255892,-500.0,0.000144,2]
[339529587,1727680255903,-500.0,0.000144,2]
[339529588,1727680255913,-169.44800571,0.000144,2]
[339529589,1727680255923,-500.0,0.000144,2]
[339529590,1727680255932,-500.0,0.000144,2]
[339529591,1727680255943,-2464.85,0.000144,2]
[339529592,1727680255953,-500.0,0.000144,2]
[339529593,1727680255963,-500.0,0.000144,2]
[339529594,1727680255973,-500.0,0.000144,2]
[339529595,1727680255983,-500.0,0.000144,2]
[339529596,1727680255994,-510.46,0.000144,2]
[339529597,1727680256004,-500.0,0.000144,2]
[339529598,1727680256014,-1629.13,0.000144,2]
[339529599,1727680256025,-1315.92,0.000144,2]
[339529600,1727680256035,-500.0,0.000144,2]
[339529601,1727680256046,-500.0,0.000144,2]
[339529602,1727680256057,-500.0,0.000144,2]
[339529603,1727680256067,-500.0,0.000144,2]
[339529604,1727680256077,-562.25618029,0.000144,2]
[339529605,1727680256087,-500.0,0.000144,2]
[339529606,1727680256097,-264.00210905,0.000144,2]
[339529607,1727680256107,-500.0,0.000144,2]
[339529608,1727680256116,-500.0,0.000144,2]
[339529609,1727680256126,-500.0,0.000144,2]
[339529610,1727680256136,-874.82,0.000144,2]
[339529611,1727680256145,-1759.74,0.000144,2]
[339529612,1727680256155,-500.0,0.000144,2]
[339529613,1727680256166,-500.0,0.000144,2]
[339529614,1727680256176,-500.0,0.000144,2]
[339529615,1727680256186,-500.0,0.000144,2]
[339529616,1727680256196,-500.0,0.000144,2]
[339529617,1727680256205,-628.24,0.000144,2]
[339529618,1727680256215,-500.0,0.000144,2]
[339529619,1727680256226,-2253.17,0.000144,2]
[339529620,1727680256236,-504.42089867,0.000144,2]
[339529621,1727680256246,-564.15,0.000144,2]
[339529622,1727680256256,-500.0,0.000144,2]
[339529623,1727680256266,-500.0,0.000144,2]
[339529624,1727680256276,-500.0,0.000144,2]
[339529625,1727680256286,-500.0,0.000144,2]
[339529626,1727680256296,-500.0,0.000144,2]
[339529627,1727680256306,-151.0,0.000144,2]
[339529628,1727680256316,-500.0,0.000144,2]
[339529629,1727680256326,-500.0,0.000144,2]
[339529630,1727680256335,-500.0,0.000144,2]
[339529631,1727680256346,-500.0,0.000144,2]
[339529632,1727680256356,-500.0,0.000144,2]
[339529633,1727680256367,-151.0,0.000144,2]
[339529634,1727680256377,-500.0,0.000144,2]
[339529635,1727680256386,-500.0,0.000144,2]
[339529636,1727680256396,-500.0,0.000144,2]
[339529637,1727680256405,-151.0,0.000144,2]
[339529638,1727680256415,-500.0,0.000144,2]
[339529639,1727680256425,-500.0,0.000144,2]
[339529640,1727680256435,-151.0,0.000144,2]
[339529641,1727680256444,-500.0,0.000144,2]
[339529642,1727680256454,-151.0,0.000144,2]
[339529643,1727680256463,-151.0,0.000144,2]
[339529644,1727680256477,-500.0,0.000144,2]
[339529645,1727680256486,-511.11,0.000144,2]
[339529646,1727680256496,-500.0,0.000144,2]
[339529647,1727680256507,-479.9996251,0.000144,2]
[339529648,1727680256516,-374.18736134,0.000144,2]
[339529649,1727680256526,-699.25,0.000144,2]
[339529650,1727680256535,-5032.225479,0.000144,2]
[339529651,1727680256547,-500.0,0.000144,2]
[339529652,1727680256558,-500.0,0.000144,2]
[339529653,1727680256567,-5032.225479,0.000144,2]
[339529654,1727680256577,-500.0,0.000144,2]
[339529655,1727680256587,-500.0,0.000144,2]
[339529656,1727680256596,-500.0,0.000144,2]
[339529657,1727680256606,-428.22520136,0.000144,2]
[339529658,1727680256616,-539.91829702,0.000144,2]
[339529659,1727680256625,-724.38,0.000144,2]
[339529660,1727680256635,-500.0,0.000144,2]
[339529661,1727680256646,-500.0,0.000144,2]
[339529662,1727680256656,-571.22,0.000144,2]
[339529663,1727680256666,-500.0,0.000144,2]
[339529664,1727680256676,-500.0,0.000144,2]
[339529665,1727680256686,-500.0,0.000144,2]
[339529666,1727680256696,-366.73316821,0.000144,2]
[339529667,1727680256706,-500.0,0.000144,2]
[339529668,1727680256716,-421.718313,0.000144,2]
[339529669,1727680256726,-500.0,0.000144,2]
[339529670,1727680256735,-421.718313,0.000144,2]
[339529671,1727680256745,-500.0,0.000144,2]
[339529672,1727680256754,-500.0,0.000144,2]
[339529673,1727680256764,-500.0,0.000144,2]
[339529674,1727680256774,-537.76,0.000144,2]
[339529675,1727680256784,-542.17,0.000144,2]
[339529676,1727680256794,-628.55,0.000144,2]
[339529677,1727680256803,-500.0,0.000144,2]
[339529678,1727680256812,-500.0,0.000144,2]
[339529679,1727680256822,-574.51,0.000144,2]
[339529680,1727680256832,-500.0,0.000144,2]
[339529681,1727680256841,-500.0,0.000144,2]
[339529682,1727680256850,-631.93,0.000144,2]
[339529683,1727680256860,-593.51017427,0.000144,2]
[339529684,1727680256870,-500.0,0.000144,2]
[339529685,1727680256880,-500.0,0.000144,2]
[339529686,1727680256890,-512.23701598,0.000144,2]
[339529687,1727680256900,-1518.18,0.000144,2]
[339529688,1727680256910,-500.0,0.000144,2]
[339529689,1727680256920,-500.0,0.000144,2]
[339529690,1727680256930,-500.0,0.000144,2]
[339529691,1727680256940,-500.0,0.000144,2]
[339529692,1727680256950,-500.0,0.000144,2]
[339529693,1727680256960,-150.112233,0.000144,2]
[339529694,1727680256970,-500.0,0.000144,2]
[339529695,1727680256980,-500.0,0.000144,2]
[339529696,1727680256989,-500.0,0.000144,2]
[339529697,1727680256999,-611.98,0.000144,2]
[339529698,1727680257009,-500.0,0.000144,2]
[339529699,1727680257019,-500.0,0.000144,2]
[339529700,1727680257029,-1215.35,0.000144,2]
[339529701,1727680257038,-618.68,0.000144,2]
[339529702,1727680257048,-500.0,0.000144,2]
[339529703,1727680257058,-1791.19,0.000144,2]
[339529704,1727680257068,-500.0,0.000144,2]
[339529705,1727680257077,-500.0,0.000144,2]
[339529706,1727680257087,-500.0,0.000144,2]
[339529707,1727680257096,-500.0,0.000144,2]
[339529708,1727680257106,-500.0,0.000144,2]
[339529709,1727680257116,-500.0,0.000144,2]
[339529710,1727680257126,-1004.63,0.000144,2]
[339529711,1727680257135,-368.14011945,0.000144,2]
[339529712,1727680257145,-500.0,0.000144,2]
[339529713,1727680257155,-555.06,0.000144,2]
[339529714,1727680257166,-500.0,0.000144,2]
[339529715,1727680257175,-500.0,0.000144,2]
[339529716,1727680257185,-517.53,0.000144,2]
[339529717,1727680257194,-500.0,0.000144,2]
[339529718,1727680257204,-500.0,0.000144,2]
[339529719,1727680257214,-500.0,0.000144,2]
[339529720,1727680257223,-500.0,0.000144,2]
[339529721,1727680257233,-500.0,0.000144,2]
[339529722,1727680257243,-500.0,0.000144,2]
[339529723,1727680257253,-500.0,0.000144,2]
[339529724,1727680257262,-500.0,0.000144,2]
[339529725,1727680257272,-500.0,0.000144,2]
[339529726,1727680257282,-500.0,0.000144,2]
[339529727,1727680257292,-151.0,0.000144,2]
[339529728,1727680257302,-500.0,0.000144,2]
[339529729,1727680257311,-848.028938,0.000144,2]
[339529730,1727680257321,-277.52677986,0.000144,2]
[339529731,1727680257331,-500.0,0.000144,2]
[339529732,1727680257341,-848.028938,0.000144,2]
[339529733,1727680257515,-708.93,0.000144,2]
[339529734,1727680257525,-500.0,0.000144,2]
[339529735,1727680257534,-1773.57,0.000144,2]
[339529736,1727680257545,-500.0,0.000144,2]
[339529737,1727680257554,-500.0,0.000144,2]
[339529738,1727680257564,-587.98,0.000144,2]
[339529739,1727680257573,-364.34508069,0.000144,2]
[339529740,1727680257583,-163.072609,0.000144,2]
[339529741,1727680257593,-500.0,0.000144,2]
[339529742,1727680257602,-2789.9,0.000144,2]
[339529743,1727680257612,-163.072609,0.000144,2]
[339529744,1727680257621,-500.0,0.000144,2]
[339529745,1727680257632,-500.0,0.000144,2]
[339529746,1727680257642,-503.816295,0.000144,2]
[339529747,1727680257651,-503.816295,0.000144,2]
[339529748,1727680257661,-151.0,0.00014444,2]
[339529749,1727680257670,-151.0,0.00014444,2]
[339529750,1727680257679,-151.0,0.00014444,2]
[339529751,1727680257689,-151.0,0.00014444,2]
[339529752,1727680257698,-151.0,0.00014444,2]
[339529753,1727680257708,-151.0,0.00014444,2]
[339529754,1727680257717,-151.0,0.00014444,2]
[339529755,1727680257727,-151.0,0.00014444,2]
[339529756,1727680257736,-1161.71819,0.00014444,2]
[339529757,1727680257746,-1161.71819,0.00014444,2]
[339529758,1727680257755,-375.293531,0.00014444,2]
[339529759,1727680257764,-375.293531,0.00014444,2]
[339529760,1727680257774,-216.062877,0.00014444,2]
[339529761,1727680257783,-216.062877,0.00014444,2]
[339529762,1727680257792,-235.203779,0.00014444,2]
[339529763,1727680257801,-151.0,0.00014444,2]
[339529764,1727680257810,-151.0,0.00014444,2]
[339529765,1727680257820,-151.0,0.00014444,2]
[339529766,1727680257830,-373.782663,0.00014444,2]
[339529767,1727680257839,-373.782663,0.00014444,2]
[339529768,1727680257849,-159.221219,0.00014444,2]
[339529769,1727680257859,-159.221219,0.00014444,2]
[339529770,1727680257868,-581.735919,0.00014444,2]
[339529771,1727680257878,-581.735919,0.00014444,2]
[339529772,1727680257887,-1062.484411,0.00014444,2]
[339529773,1727680257896,-1062.484411,0.00014444,2]
[339529774,1727680257906,-150.0,0.00014519,2]
[339529775,1727680257917,-369.4772742,0.00014522,2]
[339529776,1727680257926,-10888.99868364,0.00014522,2]
[339529777,1727680257936,-151.0,0.00014522,2]
[339529778,1727680257945,-151.0,0.00014522,2]
[339529779,1727680257955,-1046.062606,0.00014522,2]
[339529780,1727680257965,-1046.062606,0.00014522,2]
[339529781,1727680257974,-151.0,0.00014522,2]
[339529782,1727680257984,-210.011549,0.00014522,2]
[339529783,1727680257994,-653.570452,0.00014522,2]
[339529784,1727680258003,-653.570452,0.00014522,2]
[339529785,1727680258012,-1963.30789,0.00014522,2]
[339529786,1727680258021,-1963.30789,0.00014522,2]
[339529787,1727680258030,-1787.443551,0.00014522,2]
[339529788,1727680258040,-1787.443551,0.00014522,2]
[339529789,1727680258049,-220.438095,0.00014522,2]
[339529790,1727680258058,-220.438095,0.00014522,2]
[339529791,1727680258067,-151.0,0.00014522,2]
[339529792,1727680258076,-309.114078,0.00014522,2]
[339529793,1727680258086,-309.114078,0.00014522,2]
[339529794,1727680258095,-587.780477,0.00014522,2]
[339529795,1727680258104,-587.780477,0.00014522,2]
[339529796,1727680258113,-642.951546,0.00014522,2]
[339529797,1727680258123,-642.951546,0.00014522,2]
[339529798,1727680258132,-4978.46105,0.00014522,2]
[339529799,1727680258141,-4978.46105,0.00014522,2]
[339529800,1727680258150,-500.0,0.00014523,2]
[339529801,1727680258160,-174.515632,0.00014523,2]
[339529802,1727680258169,-174.515632,0.00014523,2]
[339529803,1727680258178,-151.0,0.00014523,2]
[339529804,1727680258187,-151.0,0.00014523,2]
[339529805,1727680258197,-185.460843,0.00014523,2]
[339529806,1727680258206,-185.460843,0.00014523,2]
[339529807,1727680258215,-151.0,0.00014523,2]
[339529808,1727680258224,-151.0,0.00014523,2]
[339529809,1727680258233,-151.0,0.00014523,2]
[339529810,1727680258243,-672.999476,0.00014523,2]
[339529811,1727680258252,-151.0,0.00014523,2]
[339529812,1727680258262,-672.999476,0.00014523,2]
[339529813,1727680258272,-421.718313,0.00014523,2]
[339529814,1727680258281,-421.718313,0.00014523,2]
[339529815,1727680258290,-150.0,0.00014523,2]
[339529816,1727680258299,-541.0,0.00014523,2]
[339529817,1727680258308,-500.0,0.00014523,2]
[339529818,1727680258317,-500.0,0.00014523,2]
[339529819,1727680258327,-150.0,0.0001455,2]
[339529820,1727680258336,-541.0,0.0001455,2]
[339529821,1727680258346,-500.0,0.0001455,2]
[339529822,1727680258355,-500.0,0.0001455,2]
[339529823,1727680258365,-210.21126895,0.00014578,2]
[339529824,1727680258374,-541.0,0.00014578,2]
[339529825,1727680258383,-641.64125952,0.00014578,2]
[339529826,1727680258393,-500.0,0.00014578,2]
[339529827,1727680258402,-151.0,0.00014578,2]
[339529828,1727680258416,-151.0,0.00014578,2]
[339529829,1727680258426,-151.0,0.00014578,2]
[339529830,1727680258435,-151.0,0.00014578,2]
[339529831,1727680258445,-153.0,0.000146,2]
[339529832,1727680258454,-153.0,0.000146,2]
[339529833,1727680258464,-306.0,0.000146,2]
[339529834,1727680258476,-153.0,0.000146,2]
[339529835,1727680258486,-153.0,0.000146,2]
[339529836,1727680258496,-153.0,0.000146,2]
[339529837,1727680258506,-153.0,0.000146,2]
[339529838,1727680258516,-306.0,0.000146,2]
[339529839,1727680258526,-153.0,0.000146,2]
[339529840,1727680258535,-153.0,0.000146,2]
[339529841,1727680258545,-153.0,0.000146,2]
[339529842,1727680258554,-306.0,0.000146,2]
[339529843,1727680258563,-153.0,0.000146,2]
[339529844,1727680258573,-153.0,0.000146,2]
[339529845,1727680258582,-153.0,0.000146,2]
[339529846,1727680258592,-153.0,0.000146,2]
[339529847,1727680258601,-153.0,0.000146,2]
[339529848,1727680258611,-153.0,0.000146,2]
[339529849,1727680258620,-153.0,0.000146,2]
[339529850,1727680258630,-153.0,0.000146,2]
[339529851,1727680258639,-153.0,0.000146,2]
[339529852,1727680258649,-365.726169,0.000146,2]
[339529853,1727680258659,-153.0,0.000146,2]
[339529854,1727680258678,-212.0663797,0.000146,2]
[339529855,1727680258687,-153.0,0.000146,2]
[339529856,1727680258696,-153.0,0.000146,2]
[339529857,1727680258706,-209.3635278,0.000146,2]
[339529858,1727680258715,-153.8856849,0.000146,2]
[339529859,1727680258726,-153.0,0.000146,2]
[339529860,1727680258735,-418.6686443,0.000146,2]
[339529861,1727680258744,-153.0,0.000146,2]
[339529862,1727680258754,-209.3635278,0.000146,2]
[339529863,1727680258763,-153.0,0.000146,2]
[339529864,1727680258773,-153.0,0.000146,2]
[339529865,1727680258783,-209.3635278,0.000146,2]
[339529866,1727680258793,-209.3635278,0.000146,2]
[339529867,1727680258802,-306.0,0.000146,2]
[339529868,1727680258811,-153.0,0.000146,2]
[339529869,1727680258821,-209.3635278,0.000146,2]
[339529870,1727680258830,-210.161981,0.000146,2]
[339529871,1727680258840,-210.161981,0.000146,2]
[339529872,1727680258850,-153.0,0.000146,2]
[339529873,1727680258860,-209.3635278,0.000146,2]
[339529874,1727680258870,-209.3635278,0.000146,2]
[339529875,1727680258880,-153.0,0.000146,2]
[339529876,1727680258889,-307.8658611,0.000146,2]
[339529877,1727680258898,-456.7596164,0.000146,2]
[339529878,1727680258913,-541.7563199,0.000146,2]
[339529879,1727680258923,-153.0,0.000146,2]
[339529880,1727680258932,-209.3635278,0.000146,2]
[339529881,1727680258941,-209.3635278,0.000146,2]
[339529882,1727680258951,-412.4195684,0.000146,2]
[339529883,1727680258961,-209.3635278,0.000146,2]
[339529884,1727680258970,-153.0,0.000146,2]
[339529885,1727680258980,-153.0,0.000146,2]
[339529886,1727680258989,-153.0,0.000146,2]
[339529887,1727680258999,-153.0,0.000146,2]
[339529888,1727680259009,-209.3635278,0.000146,2]
[339529889,1727680259019,-153.0,0.000146,2]
[339529890,1727680259029,-421.47164,0.000146,2]
[339529891,1727680259038,-153.0,0.000146,2]
[339529892,1727680259048,-153.0,0.000146,2]
[339529893,1727680259058,-209.3635278,0.000146,2]
[339529894,1727680259068,-153.0,0.000146,2]
[339529895,1727680259077,-153.0,0.000146,2]
[339529896,1727680259087,-153.0,0.000146,2]
[339529897,1727680259096,-306.0,0.000146,2]
[339529898,1727680259106,-209.3635278,0.000146,2]
[339529899,1727680259116,-450.5526548,0.000146,2]
[339529900,1727680259126,-153.0,0.000146,2]
[339529901,1727680259136,-824.4276788,0.000146,2]
[339529902,1727680259146,-153.0,0.000146,2]
[339529903,1727680259155,-209.3635278,0.000146,2]
[339529904,1727680259167,-153.0,0.000146,2]
[339529905,1727680259176,-153.0,0.000146,2]
[339529906,1727680259186,-153.0,0.000146,2]
[339529907,1727680259195,-153.0,0.000146,2]
[339529908,1727680259205,-153.0,0.000146,2]
[339529909,1727680259215,-412.4195684,0.000146,2]
[339529910,1727680259224,-153.0,0.000146,2]
[339529911,1727680259233,-154.3935528,0.000146,2]
[339529912,1727680259243,-412.4195684,0.000146,2]
[339529913,1727680259252,-306.0,0.000146,2]
[339529914,1727680259261,-153.0,0.000146,2]
[339529915,1727680259270,-194.4862929,0.000146,2]
[339529916,1727680259280,-412.4195684,0.000146,2]
[339529917,1727680259290,-153.0,0.000146,2]
[339529918,1727680259300,-153.0,0.000146,2]
[339529919,1727680259310,-541.0,0.00014605,2]
[339529920,1727680259319,-500.0,0.00014605,2]
[339529921,1727680259329,-541.0,0.00014633,2]
[339529922,1727680259339,-500.0,0.00014633,2]
[339529923,1727680259349,-150.217,0.00014648,2]
[339529924,1727680259359,-525.968,0.00014648,2]
[339529925,1727680259368,-1218.649,0.00014648,2]
[339529926,1727680259378,-151.0,0.00014648,2]
[339529927,1727680259388,-151.0,0.00014648,2]
[339529928,1727680259397,-151.0,0.00014648,2]
[339529929,1727680259406,-151.0,0.00014648,2]
[339529930,1727680259417,-151.0,0.00014648,2]
[339529931,1727680259426,-151.0,0.00014648,2]
[339529932,1727680259436,-5032.225479,0.00014648,2]
[339529933,1727680259446,-5032.225479,0.00014648,2]
[339529934,1727680259455,-55966.0,0.00014657,2]
[339529935,1727680259465,-541.0,0.0001466,2]
[339529936,1727680259476,-691.30539446,0.0001466,2]
[339529937,1727680259487,-1040.57,0.0001467,2]
[339529938,1727680259496,-500.0,0.0001467,2]
[339529939,1727680259507,-500.0,0.0001467,2]
[339529940,1727680259516,-500.0,0.0001467,2]
[339529941,1727680259525,-298.65973367,0.0001467,2]
[339529942,1727680259535,-687.39,0.0001467,2]
[339529943,1727680259547,-29570.04,0.0001467,2]
[339529944,1727680259556,-500.0,0.0001467,2]
[339529945,1727680259566,-1984.96,0.0001467,2]
[339529946,1727680259575,-500.0,0.0001467,2]
[339529947,1727680259586,-500.0,0.0001467,2]
[339529948,1727680259595,-500.0,0.0001467,2]
[339529949,1727680259604,-500.0,0.0001467,2]
[339529950,1727680259614,-500.0,0.0001467,2]
[339529951,1727680259623,-500.0,0.0001467,2]
[339529952,1727680259632,-683.54,0.0001467,2]
[339529953,1727680259641,-500.0,0.0001467,2]
[339529954,1727680259651,-1804.61,0.0001467,2]
[339529955,1727680259661,-500.0,0.0001467,2]
[339529956,1727680259671,-500.0,0.0001467,2]
[339529957,1727680259680,-500.0,0.0001467,2]
[339529958,1727680259689,-1783.8,0.0001467,2]
[339529959,1727680259699,-700.56,0.0001467,2]
[339529960,1727680259709,-500.0,0.0001467,2]
[339529961,1727680259718,-500.0,0.0001467,2]
[339529962,1727680259728,-500.0,0.0001467,2]
[339529963,1727680259737,-500.0,0.0001467,2]
[339529964,1727680259747,-500.0,0.0001467,2]
[339529965,1727680259757,-720.74,0.0001467,2]